Workbook

Sheet введение (hidden)
H57: 7582-003-АТС.01.ГП
C59: Изм. | D59: Лист | E59: № докум | F59: Подп. | G59: Дата
C60: Разраб. | E60: Медвинский | H60: УУТЭ | I60: Стадия | J60: Лист | K60: Листов
C61: Пров. | E61: Волков | H61: пр. М.Тореза, кв.7-7А, УУТЭ-1 | I61: Р | J61: 1.1 | K61: 4
C62: Т.контр.
C63: Принял | H63: Гидравлический расчет | I63: ЗАО "СРНУ"
C64: Н.контр.
C65: Утв. | I65: Санкт-Петербург

Sheet ПОТЕРИ
Q1: новая | GR1: 0
B2: Расчет гидравлических потерь | R2: мин | S2: макс | T2: предел | GR2: 0.25
B3: на узлах учета с ультразвуковыми расходомерами "ПУЛЬСАР" | Q3: 15 | R3: 0.006 | S3: 0.6 | T3: 1.2 | U3: 3 | GR3: 0.5
Q4: 15 | R4: 0.012 | S4: 0.6 | T4: 1.2 | U4: 4 | GR4: 0.75
Q5: 15 | R5: 0.03 | S5: 1.5 | T5: 3 | U5: 5 | GR5: 1
Q6: 15 | R6: 0.015 | S6: 1.5 | T6: 3.5 | U6: 6 | GR6: 1.25
Q7: 20 | R7: 0.03 | S7: 1.5 | T7: 3 | U7: 7 | GR7: 1.5
Q8: 20 | R8: 0.025 | S8: 2.5 | T8: 5 | U8: 8 | GR8: 1.75
Q9: 25 | R9: 0.035 | S9: 3.5 | T9: 7 | U9: 9 | GR9: 2
Q10: 25 | R10: 0.06 | S10: 6 | T10: 12 | U10: 10 | GR10: 2.25
Q11: 32 | R11: 0.06 | S11: 6 | T11: 12 | U11: 11 | W11: Выбор ДУ 1-й | X11: Выбор ДУ 2-й
Q12: 40 | R12: 0.1 | S12: 10 | T12: 20 | U12: 12 | W12: =SMALL(IF((E18>=$Q$3:$Q$25)*(E49<=$T$3:$T$25),$Q$3:$Q$25,""),1) -> 15 | X12: =SMALL(IF((F18>=$Q$3:$Q$25)*(F49<=$T$3:$T$25),$Q$3:$Q$25,""),1) -> 25
Q13: 50 | R13: 0.15 | S13: 15 | T13: 30 | U13: 13 | W13: =SMALL(IF((E18>=$Q$3:$Q$25)*(E49<=$T$3:$T$25),$U$3:$U$25,""),1) -> 6 | X13: =SMALL(IF((F18>=$Q$3:$Q$25)*(F49<=$T$3:$T$25),$U$3:$U$25,""),1) -> 10
B14: Исходные параметры | Q14: 50 | R14: 0.35 | S14: 35 | T14: 70 | U14: 14 | W14: 0.025 | X14: 0.06
B15: Наименование | C15: Обозна- | D15: Размер- | E15: Трубопроводы | Q15: 65 | R15: 0.25 | S15: 25 | T15: 50 | U15: 15 | W15: 2.5 | X15: 6
C16: чение | D16: ность | E16: 1 - й | F16: 2 -й | Q16: 65 | R16: 0.5 | S16: 50 | T16: 100 | U16: 16 | W16: 5 | X16: 12
B17: Исходные параметры | Q17: 80 | R17: 0.4 | S17: 40 | T17: 80 | U17: 17
B18: Диаметр трубопровода перед конфузором | C18: D1 | D18: мм | E18: 20 | F18: 40 | Q18: 80 | R18: 0.4 | S18: 40 | T18: 80 | U18: 18
B19: Диаметр трубопровода после диффузора | C19: D2 | D19: мм | E19: 25 | F19: 40 | Q19: 80 | R19: 0.8 | S19: 80 | T19: 160 | U19: 19
B20: Диаметр расходомера | C20: Dy | D20: мм | E20: 20 | F20: 32 | Q20: 100 | R20: 1.2 | S20: 120 | T20: 240 | U20: 20
B21: Длина прямого участка до счетчика | C21: L1 | D21: мм | E21: =5*E20 -> 100 | F21: =5*F20 -> 160 | Q21: 125 | R21: 1 | S21: 100 | T21: 200 | U21: 21
B22: Длина прямого участка после счетчика | C22: L2 | D22: мм | E22: =3*E20 -> 60 | F22: =3*F20 -> 96 | Q22: 125 | R22: 2 | S22: 200 | T22: 400 | U22: 22
B23: Длина расходомера | C23: L3 | D23: мм | E23: =IF(E20=15,110,IF(E20=20,130,IF(E20=25,160,IF(E20=32,180,IF(E20=40,200,IF(E20=50,220,IF(E20=65,260,IF(E20=80,300,IF(E20=100,360,IF(E20=125,420,IF(E20=150,500,IF(E20=200,500,"ошибка")))))))))))) -> 130 | F23: =IF(F20=15,110,IF(F20=20,130,IF(F20=25,160,IF(F20=32,180,IF(F20=40,200,IF(F20=50,220,IF(F20=65,260,IF(F20=80,300,IF(F20=100,360,IF(F20=125,420,IF(F20=150,500,IF(F20=200,500,"ошибка")))))))))))) -> 180 | Q23: 150 | R23: 1.5 | S23: 150 | T23: 300 | U23: 23
B24: Длина сужения | C24: L | D24: мм | E24: =E21+E22+E23 -> 290 | F24: =F21+F23+F22 -> 436 | Q24: 150 | R24: 3 | S24: 300 | T24: 600 | U24: 24
B25: Угол раскрытия конфузора | C25: a | D25: град | E25: =I78 -> 0 | F25: =K78 -> 14.2 | Q25: 200 | R25: 2 | S25: 500 | T25: 1000 | U25: 25
B26: Угол раскрытия диффузора | C26: a | D26: град | E26: =J78 -> 11.2 | F26: =L78 -> 14.2
B27: Массовый расход воды | C27: G | D27: т / ч | E27: 3 | F27: 10
B28: Максимальная температура воды | C28: t1 | D28: град | E28: 150 | F28: 150
B29: Температура воды | C29: t | D29: град | E29: 100 | F29: 100
B30: Рабочее (избыточное) давление воды | C30: P | D30: кг / см2 | E30: 10 | F30: 10
B31: Ду косого фильтра | C31: dу | D31: мм | E31: =IF(E20=15,E18,IF(E20=20,E18,IF(E20=25,E18,IF(E32=32,E18,IF(E20=40,E18,0))))) -> 20 | F31: =IF(F20=15,F18,IF(F20=20,F18,IF(F20=25,F18,IF(F20=32,F18,IF(F20=40,F18,0))))) -> 40
B32: Эквивалентная шероховатость трубопр. | C32: d | D32: мм | E32: 0.5 | F32: 0.5
B33: Допустимые потери напора (суммарные) | C33: h | D33: м в. ст. | E33: 5 | F33: 10
B35: Расчетные параметры
B36: Диаметр расходомера | C36: Dy | D36: мм | E36: =E20 -> 20 | F36: =F20 -> 32
B37: Минимальный объемный расход | C37: qi | D37: м3 / ч | E37: =W14 -> 0.025 | F37: 0.06
B38: Максимальный объемный расход | C38: qp | D38: м3 / ч | E38: 2.5 | F38: 6
B39: Предельный объемный расход | C39: qs | D39: м3 / ч | E39: 5 | F39: 12
B40: Длина прямого участка до счетчика | C40: L1 | D40: мм | E40: =E21 -> 100 | F40: 160
B41: Длина прямого участка после счетчика | C41: L2 | D41: мм | E41: 60 | F41: 96
B42: Длина расходомера | C42: L3 | D42: мм | E42: 130 | F42: 180
B43: Угол раскрытия конфузора | C43: a | D43: град | E43: =E25 -> 0 | F43: =F25 -> 14.2
B44: Угол раскрытия диффузора | C44: a | D44: град | E44: =E26 -> 11.2 | F44: =F26 -> 14.2
B45: Ду косого фильтра | C45: dу | D45: мм | E45: =E31 -> 20 | F45: =F31 -> 40
B46: Эквивалентная шероховатость трубопр. | C46: d | D46: мм | E46: =E32 -> 0.5 | F46: =F32 -> 0.5
B47: Потеря давления на счетчике | C47: hсч | D47: МПа | E47: =IF(E28=105,J129,IF(E28=150,J113,"ошибка")) -> 0.01662043476 | F47: =IF(F28=105,A129,IF(F28=150,A113,"ошибка")) -> 0.02681953913
B48: Эквивалентная шероховатость трубопр. | C48: d | D48: мм | E48: 0.5 | F48: 0.5
B49: Объемный расход воды | C49: Q | D49: м3 / ч | E49: =(E27/E51)*1000 -> 3.128856169 | F49: =(F27/F51)*1000 -> 10.42952056
B50: Скорость воды в сужении | C50: v | D50: м / с | E50: =скорость!B24 -> 2.766516253 | F50: =скорость!D24 -> 3.602234704
B51: Плотность воды | C51: r | D51: кг / м3 | E51: =(E29*0.01)^5*(-0.0005625*E30-1.3864)+(E29*0.01)^4*(0.054517*E30+7.325)+(E29*0.01)^3*(-0.27408*E30-15.474)+(E29*0.01)^2*(0.52327*E30-5.0668)+(E29*0.01)*(-0.42067*E30-38.224)+0.16333*E30+1011.185 -> 958.816845 | F51: =(F29*0.01)^5*(-0.0005625*F30-1.3864)+(F29*0.01)^4*(0.054517*F30+7.325)+(F29*0.01)^3*(-0.27408*F30-15.474)+(F29*0.01)^2*(0.52327*F30-5.0668)+(F29*0.01)*(-0.42067*F30-38.224)+0.16333*F30+1011.185 -> 958.816845
B52: Кинематическая вязкость воды | C52: n | D52: м2 / с | E52: =0.00000178/(1+0.0337*E29+0.000221*E29^2) -> 2.705167173e-07 | F52: =0.00000178/(1+0.0337*F29+0.000221*F29^2) -> 2.705167173e-07
B53: Число Рейнолдса | C53: Re | E53: =E20*E50/(E52*1000) -> 204535.696 | F53: =F20*F50/(F52*1000) -> 426116.0333
B54: Коэффициент гидравлического трения | C54: l | E54: =0.11*((68/E53)+(E48/E20))^0.25 -> 0.04388458824 | F54: =0.11*((68/F53)+(F48/F20))^0.25 -> 0.03898979478
B55: Коэффициент сопротивления конфузора | C55: xk | E55: =IF(E25="ошибка","ошибка",(-0.0125*(E20/E18)^6+0.0224*(E20/E18)^5-0.00723*(E20/E18)^4+0.00444*(E20/E18)^2-0.00745)*((0.01745*E25)^3-2*PI()*(0.01745*E25)^2-10*0.01745*E25)+E58) -> 0 | F55: =IF(F25="ошибка","ошибка",((-0.0125*(F20/F18)^6+0.0224*(F20/F18)^5-0.00723*(F20/F18)^4+0.00444*(F20/F18)^2-0.00745)*((0.01745*F25)^3-2*PI()*(0.01745*F25)^2-10*0.01745*F25)+F58)) -> 0.03326842177
B56: Коффициент нерав. поля скоростей | C56: kд | E56: =-0.24*LOG10(E53)+2.869 -> 1.594415413 | F56: =-0.24*LOG10(F53)+2.869 -> 1.51791331
B57: Коэффициент сопротивления расширения | C57: xрасш | E57: =IF(E25="ошибка","ошибка",(E56*3.2*(1-(E20/E19)^2)^2*(TAN(RADIANS(E25/2)))^1.25)) -> 0 | F57: =IF(F25="ошибка","ошибка",(F56*3.2*(1-(F20/F19)^2)^2*(TAN(RADIANS(F25/2)))^1.25)) -> 0.04658116133 | I57: Коэффициент сопротивления трения | J57: Коэффициент сопротивления трения
B58: Коэффициент сопротивления трения | C58: xтр | E58: =IF(E25=0,0,IF(E25="ошибка","ошибка",I58)) -> 0 | F58: =IF(F25=0,0,IF(F25="ошибка","ошибка",J58)) -> 0.02328003621 | I58: =E54/(8*SIN(RADIANS(E25/2)))*(1-(E20/E19)^4) ->  | J58: =F54/(8*SIN(RADIANS(F25/2)))*(1-(F20/F19)^4) -> 0.02328003621
B59: Потери напора на прямом участке | C59: hl | D59: м в. ст. | E59: =прямой!B24 -> 0.3074986145 | F59: =IF(F26=0,0,прямой!D24) -> 0.4109930434
B60: Потери напора в конфузоре | C60: hk | D60: м в. ст. | E60: =IF(E55="ошибка","ошибка",(E55*E50^2/(2*9.81))) -> 0 | F60: =IF(F55="ошибка","ошибка",(F55*F50^2/(2*9.81))) -> 0.02200276232
B61: Потери напора на диффузоре | C61: hд | D61: м в. ст. | E61: =IF(E26=0,0,IF(E26="ошибка","ошибка",IF(E25="ошибка","ошибка",диффузор!B24))) -> 0 | F61: =IF(F26=0,0,IF(F26="ошибка","ошибка",IF(F25="ошибка","ошибка",диффузор!D24))) -> 0.04777413554
B62: Потери напора на счетчике | C62: hсч | D62: м в. ст. | E62: =E47*101.9744288922 -> 1.694859342 | F62: =F47*101.9744288922 -> 2.734907186
B63: =CONCATENATE("Потери напора на фильтре"," Ду",E31) -> Потери напора на фильтре Ду20 | C63: hф | D63: м в. ст. | E63: =фильтр!C6 -> 0.2652582385 | F63: =фильтр!F6 -> 0.2210485321
B64: Потери напора (суммарные) | C64: h | D64: м в. ст. | E64: =IF(E59="ошибка","ошибка",IF(E60="ошибка","ошибка",IF(E61="ошибка","ошибка",IF(E62="ошибка","ошибка",IF(E63="ошибка","ошибка",(E63+E61+E60+E59+E62)))))) -> 2.267616195 | F64: =IF(F59="ошибка","ошибка",IF(F60="ошибка","ошибка",IF(F61="ошибка","ошибка",IF(F62="ошибка","ошибка",IF(F63="ошибка","ошибка",(F63+F61+F60+F59+F62)))))) -> 3.43672566
B66: Подающий тр-д | C66: =E64 -> 2.267616195 | D66: м в. ст.
B67: Обратныйй тр-д | C67: =F64 -> 3.43672566 | D67: м в. ст.
I77: конф прям | J77: диф прям | K77: конф обрат | L77: диф обрат | N77: счетчик | R77: конф прям | S77: диф прям | T77: конф обрат | U77: диф обрат
C78: ввод | D78: прям участок | E78: вывод | F78: угол1 | G78: угол2 | I78: =IF(E18=15,I106,IF(E18=20,I79,IF(E18=25,I81,IF(E18=32,I84,IF(E18=40,I88,IF(E18=50,I92,IF(E18=65,I96,IF(E18=80,I100,IF(E18=100,I103,IF(E18=125,I105,IF(E18=150,R85,IF(E18=200,R89,IF(E18=250,R93,IF(E18=300,R94,IF(E18=350,R95,"ошибка"))))))))))))))) -> 0 | J78: =IF(E19=15,I106,IF(E19=20,I79,IF(E19=25,I81,IF(E19=32,I84,IF(E19=40,I88,IF(E19=50,I92,IF(E19=65,I96,IF(E19=80,I100,IF(E19=100,I103,IF(E19=125,I105,IF(E19=150,R85,IF(E19=200,R89,IF(E19=250,R93,IF(E19=300,R94,IF(E19=350,R95,"ошибка"))))))))))))))) -> 11.2 | K78: =IF(F18=15,K106,IF(F18=20,K79,IF(F18=25,K81,IF(F18=32,K84,IF(F18=40,K88,IF(F18=50,K92,IF(F18=65,K96,IF(F18=80,K100,IF(F18=100,K103,IF(F18=125,K105,IF(F18=150,R85,IF(F18=200,T89,IF(F18=250,T93,IF(F18=300,T94,IF(F18=350,T95,"ошибка"))))))))))))))) -> 14.2 | L78: =IF(F19=15,K106,IF(F19=20,K79,IF(F19=25,K81,IF(F19=32,K84,IF(F19=40,K88,IF(F19=50,K92,IF(F19=65,K96,IF(F19=80,K100,IF(F19=100,K103,IF(F19=125,K105,IF(F19=150,R85,IF(F19=200,T89,IF(F19=250,T93,IF(F19=300,T94,IF(F19=350,T95,"ошибка"))))))))))))))) -> 14.2 | M78: ввод | N78: прям участок | O78: вывод | P78: угол1 | Q78: угол2
C79: 20 | D79: 15 | E79: 20 | F79: 15 | G79: 15 | I79: =IF(E20=15,F79,IF(E20=20,F80,"ошибка")) -> 0 | K79: =IF(F20=15,F79,IF(F20=20,F80,"ошибка")) -> ошибка | M79: 80 | N79: 80 | O79: 80 | P79: 0 | Q79: 0
C80: 20 | D80: 20 | E80: 20 | F80: 0 | G80: 0 | M80: 100 | N80: 80 | O80: 100 | P80: 22.6 | Q80: 22.6
C81: 25 | D81: 15 | E81: 25 | F81: 22 | G81: 22 | I81: =IF(E20=15,F81,IF(E20=20,F82,IF(E20=25,F83,"ошибка"))) -> 11.2 | K81: =IF(F20=15,F81,IF(F20=20,F82,IF(F20=25,F83,"ошибка"))) -> ошибка | M81: 100 | N81: 100 | O81: 100 | P81: 0 | Q81: 0
C82: 25 | D82: 20 | E82: 25 | F82: 11.2 | G82: 11.2 | M82: 125 | N82: 80 | O82: 125 | P82: 39 | Q82: 39
C83: 25 | D83: 25 | E83: 25 | F83: 0 | G83: 0 | M83: 125 | N83: 100 | O83: 125 | P83: 22.6 | Q83: 22.6
C84: 32 | D84: 15 | E84: 32 | F84: 36.8 | G84: 36.8 | I84: =IF(E20=15,F84,IF(E20=20,F85,IF(E20=25,F86,IF(E20=32,F87,"ошибка")))) -> 26.4 | K84: =IF(F20=15,F84,IF(F20=20,F85,IF(F20=25,F86,IF(F20=32,F87,"ошибка")))) -> 0 | M84: 125 | N84: 125 | O84: 125 | P84: 0 | Q84: 0
C85: 32 | D85: 20 | E85: 32 | F85: 26.4 | G85: 26.4 | M85: 150 | N85: 80 | O85: 150 | P85: 53.1 | Q85: 53.1 | R85: =IF(E20=80,P85,IF(E20=100,P86,IF(E20=125,P87,IF(E20=150,P87,"ошибка")))) -> ошибка | T85: =IF(F20=80,P85,IF(F20=100,P86,IF(F20=125,P87,IF(F20=150,P87,"ошибка")))) -> ошибка
C86: 32 | D86: 25 | E86: 32 | F86: 15.6 | G86: 15.6 | M86: 150 | N86: 100 | O86: 150 | P86: 39.6 | Q86: 39.6
C87: 32 | D87: 32 | E87: 32 | F87: 0 | G87: 0 | M87: 150 | N87: 125 | O87: 150 | P87: 20.4 | Q87: 20.4
C88: 40 | D88: 20 | E88: 40 | F88: 34.8 | G88: 34.8 | I88: =IF(E20=20,F88,IF(E20=25,F89,IF(E20=32,F90,IF(E20=40,F91,"ошибка")))) -> 34.8 | K88: =IF(F20=20,F88,IF(F20=25,F89,IF(F20=32,F90,IF(F20=40,F91,"ошибка")))) -> 14.2 | M88: 150 | N88: 150 | O88: 150 | P88: 0 | Q88: 0
C89: 40 | D89: 25 | E89: 40 | F89: 26.4 | G89: 26.4 | M89: 200 | N89: 100 | O89: 200 | P89: 66.8 | Q89: 66.8 | R89: =IF(E20=100,P89,IF(E20=125,P90,IF(E20=150,P91,IF(E20=200,P92,"ошибка")))) -> ошибка | T89: =IF(F20=100,P89,IF(F20=125,P90,IF(F20=150,P91,IF(F20=200,P92,"ошибка")))) -> ошибка
C90: 40 | D90: 32 | E90: 40 | F90: 14.2 | G90: 14.2 | M90: 200 | N90: 125 | O90: 200 | P90: 52.2 | Q90: 52.2
C91: 40 | D91: 40 | E91: 40 | F91: 0 | G91: 0 | M91: 200 | N91: 150 | O91: 200 | P91: 36.5 | Q91: 36.5
C92: 50 | D92: 25 | E92: 50 | F92: 36.6 | G92: 36.6 | I92: =IF(E20=25,F92,IF(E20=32,F93,IF(E20=40,F94,IF(E20=50,F95,"ошибка")))) -> ошибка | K92: =IF(F20=25,F92,IF(F20=32,F93,IF(F20=40,F94,IF(F20=50,F95,"ошибка")))) -> 26.6 | M92: 200 | N92: 200 | O92: 200 | P92: 0 | Q92: 0
C93: 50 | D93: 32 | E93: 50 | F93: 26.6 | G93: 26.6 | M93: 250 | N93: 200 | O93: 250 | P93: 31.3 | Q93: 31.3 | R93: =IF(E20=200,P93,"ошибка") -> ошибка | T93: =IF(F20=200,P93,"ошибка") -> ошибка
C94: 50 | D94: 40 | E94: 50 | F94: 15 | G94: 15 | M94: 300 | N94: 200 | O94: 300 | P94: 53.1 | Q94: 53.1 | R94: =IF(E20=200,P94,"ошибка") -> ошибка | T94: =IF(F20=200,P94,"ошибка") -> ошибка
C95: 50 | D95: 50 | E95: 50 | F95: 0 | G95: 0 | M95: 350 | N95: 200 | O95: 200 | P95: 48.5 | Q95: 48.5 | R95: =IF(E20=200,P95,"ошибка") -> ошибка | T95: =IF(F20=200,P95,"ошибка") -> ошибка
C96: 65 | D96: 32 | E96: 65 | F96: 40.8 | G96: 40.8 | I96: =IF(E20=32,F96,IF(E20=40,F97,IF(E20=50,F98,IF(E20=65,F99,"ошибка")))) -> ошибка | K96: =IF(F20=32,F96,IF(F20=40,F97,IF(F20=50,F98,IF(F20=65,F99,"ошибка")))) -> 40.8
C97: 65 | D97: 40 | E97: 65 | F97: 31.4 | G97: 31.4
C98: 65 | D98: 50 | E98: 65 | F98: 19.2 | G98: 19.2
C99: 65 | D99: 65 | E99: 65 | F99: 0 | G99: 0
C100: 80 | D100: 40 | E100: 80 | F100: 48.4 | G100: 48.4 | I100: =IF(E20=40,F100,IF(E20=50,F101,IF(E20=65,F102,IF(E20=80,P79,IF(E20=100,P80,"ошибка"))))) -> ошибка | K100: =IF(F20=40,F100,IF(F20=50,F101,IF(F20=65,F102,IF(F20=80,P79,IF(F20=100,P80,"ошибка"))))) -> ошибка
C101: 80 | D101: 50 | E101: 80 | F101: 37.2 | G101: 37.2
C102: 80 | D102: 65 | E102: 80 | F102: 19.2 | G102: 19.2
C103: 100 | D103: 50 | E103: 100 | F103: 52.2 | G103: 52.2 | I103: =IF(E20=50,F103,IF(E20=65,F104,IF(E20=80,P80,IF(E20=100,P81,"ошибка")))) -> ошибка | K103: =IF(F20=50,F103,IF(F20=65,F104,IF(F20=80,P80,IF(F20=100,P81,"ошибка")))) -> ошибка | N103: вычисление угла
C104: 100 | D104: 65 | E104: 100 | F104: 37.8 | G104: 37.8 | N104: 0.45
C105: 125 | D105: 65 | E105: 125 | F105: 50.3 | G105: 50.3 | I105: =IF(E20=65,F105,IF(E20=80,P82,IF(E20=100,P83,IF(E20=125,P84,"ошибка")))) -> ошибка | K105: =IF(F20=65,F105,IF(F20=80,P82,IF(F20=100,P83,IF(F20=125,P84,"ошибка")))) -> ошибка | N105: =ATAN(N104) -> 0.4228539261 | O105: =2*N105*57.2958 -> 48.45550796
C106: 15 | D106: 15 | E106: 15 | F106: 0 | G106: 0 | I106: =IF(E20=15,0,"ошибка") -> ошибка | K106: =IF(F20=15,0,"ошибка") -> ошибка
B112: обратка | K112: подача
A113: =IF(F20=200,B126,IF(F20=150,B125,IF(F20=125,B124,IF(F20=100,B123,IF(F20=80,B122,IF(F20=65,B115,IF(F20=50,B116,IF(F20=40,B117,IF(F20=32,B118,IF(F20=25,B119,IF(F20=20,B120,IF(F20=15,B121,"Недопустимое значение параметра")))))))))))) -> 0.02681953913 | C113: металл | J113: =IF(E20=200,K126,IF(E20=150,K125,IF(E20=125,K124,IF(E20=100,K123,IF(E20=80,K122,IF(E20=65,K115,IF(E20=50,K116,IF(E20=40,K117,IF(E20=32,K118,IF(E20=25,K119,IF(E20=20,K120,IF(E20=15,K121,"Недопустимое значение параметра")))))))))))) -> 0.01662043476 | L113: металл
A114: ду | B114: металл | J114: ду | K114: металл
A115: 65 | B115: =5.83333333333333E-06*F49*F49 -> 0.000634520245 | J115: 65 | K115: =5.83333333333333E-06*E49*E49 -> 5.710682205e-05
A116: 50 | B116: =0.0000119047619047619*F49*F49 -> 0.001294939276 | J116: 50 | K116: =0.0000119047619047619*E49*E49 -> 0.0001165445348
A117: 40 | B117: =0.000074113*F49*F49 -> 0.008061634101 | J117: 40 | K117: =0.000074113*E49*E49 -> 0.0007255470691
A118: 32 | B118: =0.00024656*F49*F49 -> 0.02681953913 | J118: 32 | K118: =0.00024656*E49*E49 -> 0.002413758522
A119: 25 | B119: =0.00103607*F49*F49 -> 0.1126984098 | J119: 25 | K119: =0.00103607*E49*E49 -> 0.01014285688
A120: 20 | B120: =0.00169774*F49*F49 -> 0.1846714973 | J120: 20 | K120: =0.00169774*E49*E49 -> 0.01662043476
A121: 15 | B121: =0.00694906*F49*F49 -> 0.7558833007 | J121: 15 | K121: =0.00694906*E49*E49 -> 0.06802949706
A122: 80 | B122: =2.65118040651432E-06*F49*F49 -> 0.0002883818813 | J122: 80 | K122: =2.65118040651432E-06*E49*E49 -> 2.595436932e-05
A123: 100 | B123: =8.00182898948331E-07*F49*F49 -> 8.703981414e-05 | J123: 100 | K123: =8.00182898948331E-07*E49*E49 -> 7.833583272e-06
A124: 125 | B124: =3.49854227405247E-07*F49*F49 -> 3.80553583e-05 | J124: 125 | K124: =3.49854227405247E-07*E49*E49 -> 3.424982247e-06
A125: 150 | B125: =1.75415149186407E-07*F49*F49 -> 1.908076516e-05 | J125: 150 | K125: =1.75415149186407E-07*E49*E49 -> 1.717268865e-06
A126: 200 | B126: =4.15413009548564E-08*F49*F49 -> 4.518650822e-06 | J126: 200 | K126: =4.15413009548564E-08*E49*E49 -> 4.06678574e-07
A129: =IF(F20=40,B130,IF(F20=32,B131,IF(F20=25,B132,IF(F20=20,B133,IF(F20=15,B134,"Недопустимое значение параметра"))))) -> 0.03314218892 | B129: пластик | J129: =IF(E20=40,K130,IF(E20=32,K131,IF(E20=25,K132,IF(E20=20,K133,IF(E20=15,K134,"Недопустимое значение параметра"))))) -> 0.01780387738 | K129: пластик
A130: 40 | B130: =0.00013797*F49*F49 -> 0.01500767284 | J130: 40 | K130: =0.00013797*E49*E49 -> 0.001350690555
A131: 32 | B131: =0.000304686*F49*F49 -> 0.03314218892 | J131: 32 | K131: =0.000304686*E49*E49 -> 0.002982797003
A132: 25 | B132: =0.001290555*F49*F49 -> 0.14037999 | J132: 25 | K132: =0.001290555*E49*E49 -> 0.0126341991
A133: 20 | B133: =0.001818626*F49*F49 -> 0.1978208597 | J133: 20 | K133: =0.001818626*E49*E49 -> 0.01780387738
A134: 15 | B134: =0.00895472*F49*F49 -> 0.9740487649 | J134: 15 | K134: =0.00895472*E49*E49 -> 0.08766438884

Sheet скорость (hidden)
A4: расчет скорости в сужении | F4: 1 | G4: 2 | H4: 3 | I4: 4
A5: м/с | F5: =(ПОТЕРИ!E49*1000/3.6)/((PI()*ПОТЕРИ!E20^2)/4) -> 2.766516253 | G5: =(ПОТЕРИ!F49*1000/3.6)/((PI()*ПОТЕРИ!F20^2)/4) -> 3.602234704 | H5: =(ПОТЕРИ!#REF!*1000/3.6)/((PI()*ПОТЕРИ!#REF!^2)/4) ->  | I5: =(ПОТЕРИ!#REF!*1000/3.6)/((PI()*ПОТЕРИ!#REF!^2)/4) -> 
F10: 1 | G10: 2 | H10: 3 | I10: 4
E11: условие: | F11: =IF(ПОТЕРИ!E24>0,1,0) -> 1 | G11: =IF(ПОТЕРИ!F24>0,1,0) -> 1 | H11: =IF(ПОТЕРИ!#REF!>0,1,0) ->  | I11: =IF(ПОТЕРИ!#REF!>0,1,0) -> 
F12: =IF(F11=1,F5,0) -> 2.766516253 | G12: =IF(G11=1,G5,0) -> 3.602234704 | H12: =IF(H11=1,H5,0) ->  | I12: =IF(I11=1,I5,0) -> 
A23: 1-й тр-д | C23: 2-й тр-д
A24: м/с= | B24: =F12 -> 2.766516253 | C24: м/с= | D24: =G12 -> 3.602234704
A25: 3-й тр-д | C25: 4-й тр-д
A26: м/с= | B26: =H12 ->  | C26: м/с= | D26: =I12 -> 

Sheet диффузор (hidden)
A4: расчет потерь на диффузоре | F4: 1 | G4: 2 | H4: 3 | I4: 4
A5: Площадь cечения трубопровода после диффузора (м2) | F5: =(PI()*ПОТЕРИ!E19^2)/4 -> 490.8738521 | G5: =(PI()*ПОТЕРИ!F19^2)/4 -> 1256.637061 | H5: =(PI()*ПОТЕРИ!#REF!^2)/4 ->  | I5: =(PI()*ПОТЕРИ!#REF!^2)/4 -> 
A6: Площадь cечения сужения (м2) | F6: =(PI()*ПОТЕРИ!E20^2)/4 -> 314.1592654 | G6: =(PI()*ПОТЕРИ!F20^2)/4 -> 804.2477193 | H6: =(PI()*ПОТЕРИ!#REF!^2)/4 ->  | I6: =(PI()*ПОТЕРИ!#REF!^2)/4 -> 
A7: Отношение площадей | F7: =F5/F6 -> 1.5625 | G7: =G5/G6 -> 1.5625 | H7: =H5/H6 ->  | I7: =I5/I6 -> 
A8: Коэф.сопр. расширения | F8: =ПОТЕРИ!E57 -> 0 | G8: =ПОТЕРИ!F57 -> 0.04658116133 | H8: =ПОТЕРИ!#REF! ->  | I8: =ПОТЕРИ!#REF! -> 
A9: Коэф.сопр. трения диффузора | F9: =ПОТЕРИ!E58/(8*SIN(RADIANS(ПОТЕРИ!E26/2)))*(1-1/диффузор!F7)^2 -> 0 | G9: =ПОТЕРИ!F58/(8*SIN(RADIANS(ПОТЕРИ!F26/2)))*(1-1/диффузор!G7)^2 -> 0.003051230427 | H9: =ПОТЕРИ!#REF!/(8*SIN(RADIANS(ПОТЕРИ!#REF!/2)))*(1-1/диффузор!H7)^2 ->  | I9: =ПОТЕРИ!#REF!/(8*SIN(RADIANS(ПОТЕРИ!#REF!/2)))*(1-1/диффузор!I7)^2 -> 
A10: Коэф.сопр. суммарный | F10: =F8+F9 -> 0 | G10: =G8+G9 -> 0.04963239176 | H10: =H8+H9 ->  | I10: =I8+I9 -> 
A11: Коэф. сопротивления диффузора | F11: =F10*ПОТЕРИ!E56 -> 0 | G11: =G10*ПОТЕРИ!F56 -> 0.07533766805 | H11: =H10*ПОТЕРИ!#REF! ->  | I11: =I10*ПОТЕРИ!#REF! -> 
A12: Динамический напор Па | F12: =(ПОТЕРИ!E51*ПОТЕРИ!E50^2)/2 -> 3669.206139 | G12: =(ПОТЕРИ!F51*ПОТЕРИ!F50^2)/2 -> 6220.849168 | H12: =(ПОТЕРИ!#REF!*ПОТЕРИ!#REF!^2)/2 ->  | I12: =(ПОТЕРИ!#REF!*ПОТЕРИ!#REF!^2)/2 -> 
A13: Потеря давления диффузором Па | F13: =F11*F12 -> 0 | G13: =G11*G12 -> 468.6642696 | H13: =H11*H12 ->  | I13: =I11*I12 -> 
A14: Потеря давления диффузором мм | F14: =F13/9.81 -> 0 | G14: =G13/9.81 -> 47.77413554 | H14: =H13/9.81 ->  | I14: =I13/9.81 -> 
F17: 1 | G17: 2 | H17: 3 | I17: 4
E18: условие: | F18: =IF(ПОТЕРИ!E24>0,1,0) -> 1 | G18: =IF(ПОТЕРИ!F24>0,1,0) -> 1 | H18: =IF(ПОТЕРИ!#REF!>0,1,0) ->  | I18: =IF(ПОТЕРИ!#REF!>0,1,0) -> 
F19: =IF(F18=1,F14,0) -> 0 | G19: =IF(G18=1,G14,0) -> 47.77413554 | H19: =IF(H18=1,H14,0) ->  | I19: =IF(I18=1,I14,0) -> 
A23: 1-й тр-д | C23: 2-й тр-д
A24: hм= | B24: =F19/1000 -> 0 | C24: hм= | D24: =G19/1000 -> 0.04777413554
A25: 3-й тр-д | C25: 4-й тр-д
A26: hм= | B26: =H19/1000 ->  | C26: hм= | D26: =I19/1000 -> 

Sheet прямой (hidden)
A4: расчет потерь прямого участка | F4: 1 | G4: 2 | H4: 3 | I4: 4
A5: коэффициент трения прямого участка | F5: =1/((2*LOG10((ПОТЕРИ!E20/2)/ПОТЕРИ!E48)+1.74)^2) -> 0.05304059179 | G5: =1/((2*LOG10((ПОТЕРИ!F20/2)/ПОТЕРИ!F48)+1.74)^2) -> 0.0443157325 | H5: =1/((2*LOG10((ПОТЕРИ!#REF!/2)/ПОТЕРИ!#REF!)+1.74)^2) ->  | I5: =1/((2*LOG10((ПОТЕРИ!#REF!/2)/ПОТЕРИ!#REF!)+1.74)^2) -> 
A6: коэффициент местного сопротивления | F6: =F5*ПОТЕРИ!E24/ПОТЕРИ!E20 -> 0.7690885809 | G6: =G5*ПОТЕРИ!F24/ПОТЕРИ!F20 -> 0.6038018553 | H6: =H5*ПОТЕРИ!#REF!/ПОТЕРИ!#REF! ->  | I6: =I5*ПОТЕРИ!#REF!/ПОТЕРИ!#REF! -> 
A7: потери участка (Па) | F7: =(F5+F6)*ПОТЕРИ!E51*ПОТЕРИ!E50^2/2 -> 3016.561408 | G7: =(G5+G6)*ПОТЕРИ!F51*ПОТЕРИ!F50^2/2 -> 4031.841756 | H7: =(H5+H6)*ПОТЕРИ!#REF!*ПОТЕРИ!#REF!^2/2 ->  | I7: =(I5+I6)*ПОТЕРИ!#REF!*ПОТЕРИ!#REF!^2/2 -> 
A8: потери участка (мм) | F8: =F7/9.81 -> 307.4986145 | G8: =G7/9.81 -> 410.9930434 | H8: =H7/9.81 ->  | I8: =I7/9.81 -> 
F10: 1 | G10: 2 | H10: 3 | I10: 4
E11: условие: | F11: =IF(ПОТЕРИ!E24>0,1,0) -> 1 | G11: =IF(ПОТЕРИ!F24>0,1,0) -> 1 | H11: =IF(ПОТЕРИ!#REF!>0,1,0) ->  | I11: =IF(ПОТЕРИ!#REF!>0,1,0) -> 
F12: =IF(F11=1,F8,0) -> 307.4986145 | G12: =IF(G11=1,G8,0) -> 410.9930434 | H12: =IF(H11=1,H8,0) ->  | I12: =IF(I11=1,I8,0) -> 
A23: 1-й тр-д | C23: 2-й тр-д
A24: hм= | B24: =F12/1000 -> 0.3074986145 | C24: hм= | D24: =G12/1000 -> 0.4109930434
A25: 3-й тр-д | C25: 4-й тр-д
A26: hм= | B26: =H12/1000 ->  | C26: hм= | D26: =I12/1000 -> 

Sheet отвод (hidden)
A1: 1-й трубопровод Ду
A2: 200 | B2: 150 | C2: 125 | D2: 100 | E2: 80 | F2: 50 | G2: 40 | H2: 32 | I2: 25 | J2: 20 | K2: 15
A3: =IF(ПОТЕРИ!#REF!=200,1,0) ->  | B3: =IF(ПОТЕРИ!#REF!=150,1,0) ->  | C3: =IF(ПОТЕРИ!#REF!=125,1,0) ->  | D3: =IF(ПОТЕРИ!#REF!=100,1,0) ->  | E3: =IF(ПОТЕРИ!#REF!=80,1,0) ->  | F3: =IF(ПОТЕРИ!#REF!=50,1,0) ->  | G3: =IF(ПОТЕРИ!#REF!=40,1,0) ->  | H3: =IF(ПОТЕРИ!#REF!=32,1,0) ->  | I3: =IF(ПОТЕРИ!#REF!=25,1,0) ->  | J3: =IF(ПОТЕРИ!#REF!=25,1,0) ->  | K3: =IF(ПОТЕРИ!#REF!=15,1,0) -> 
A4: Cкорость потока
A5: =(ПОТЕРИ!E49*1000/3.6)/((PI()*A2^2)/4) -> 0.02766516253 | B5: =(ПОТЕРИ!E49*1000/3.6)/((PI()*B2^2)/4) -> 0.04918251116 | C5: =(ПОТЕРИ!E49*1000/3.6)/((PI()*C2^2)/4) -> 0.07082281606 | D5: =(ПОТЕРИ!E49*1000/3.6)/((PI()*D2^2)/4) -> 0.1106606501 | E5: =(ПОТЕРИ!E49*1000/3.6)/((PI()*E2^2)/4) -> 0.1729072658 | F5: =(ПОТЕРИ!E49*1000/3.6)/((PI()*F2^2)/4) -> 0.4426426004 | G5: =(ПОТЕРИ!E49*1000/3.6)/((PI()*G2^2)/4) -> 0.6916290631 | H5: =(ПОТЕРИ!E49*1000/3.6)/((PI()*H2^2)/4) -> 1.080670411 | I5: =(ПОТЕРИ!E49*1000/3.6)/((PI()*I2^2)/4) -> 1.770570402 | J5: =(ПОТЕРИ!E49*1000/3.6)/((PI()*J2^2)/4) -> 2.766516253 | K5: =(ПОТЕРИ!E49*1000/3.6)/((PI()*K2^2)/4) -> 4.918251116
A8: Коэффициент Ктр
A9: =1/(4*LOG10(3.7*A2/ПОТЕРИ!E48)^2) -> 0.02487423749 | B9: =1/(4*LOG10(3.7*B2/ПОТЕРИ!E48)^2) -> 0.02695710744 | C9: =1/(4*LOG10(3.7*C2/ПОТЕРИ!E48)^2) -> 0.02841555939 | D9: =1/(4*LOG10(3.7*D2/ПОТЕРИ!E48)^2) -> 0.03036748054 | E9: =1/(4*LOG10(3.7*E2/ПОТЕРИ!E48)^2) -> 0.03252765521 | F9: =1/(4*LOG10(3.7*F2/ПОТЕРИ!E48)^2) -> 0.03790371189 | G9: =1/(4*LOG10(3.7*G2/ПОТЕРИ!E48)^2) -> 0.04093473504 | H9: =1/(4*LOG10(3.7*H2/ПОТЕРИ!E48)^2) -> 0.04434441568 | I9: =1/(4*LOG10(3.7*I2/ПОТЕРИ!E48)^2) -> 0.04863749219 | J9: =1/(4*LOG10(3.7*J2/ПОТЕРИ!E48)^2) -> 0.05307815155 | K9: =1/(4*LOG10(3.7*K2/ПОТЕРИ!E48)^2) -> 0.05976077398
A10: Коэффициент К
A11: =1.5705*A9+0.21 -> 0.24906499 | B11: =1.5705*B9+0.21 -> 0.2523361372 | C11: 0.254626636 | D11: 0.2576921282 | E11: 0.2610846825 | F11: 0.2695277795 | G11: 0.2742880014 | H11: 0.2796429048 | I11: 0.2863851815 | J11: 0.293359237 | K11: 0.3038542955
A12: Потери на отводе [Па]
A13: =(A11*ПОТЕРИ!E51*A5^2)/2 -> 0.09138707903 | B13: =(B11*ПОТЕРИ!E51*B5^2)/2 -> 0.2926216862 | C13: =(C11*ПОТЕРИ!E51*C5^2)/2 -> 0.6122881785 | D13: =(D11*ПОТЕРИ!E51*D5^2)/2 -> 1.512840862 | E13: =(E11*ПОТЕРИ!E51*E5^2)/2 -> 3.742084062 | F13: =(F11*ПОТЕРИ!E51*F5^2)/2 -> 25.31719637 | G13: =(G11*ПОТЕРИ!E51*G5^2)/2 -> 62.90120116 | H13: =(H11*ПОТЕРИ!E51*H5^2)/2 -> 156.5654699 | I13: =(I11*ПОТЕРИ!E51*I5^2)/2 -> 430.4102466 | J13: =(J11*ПОТЕРИ!E51*J5^2)/2 -> 1076.395513 | K13: =(K11*ПОТЕРИ!E51*K5^2)/2 -> 3523.647357
A14: Потери на отводе [м.в.ст.]
A15: =A13/10000 -> 9.138707903e-06 | B15: =B13/10000 -> 2.926216862e-05 | C15: 6.122881785e-05 | D15: 0.0001512840862 | E15: 0.0003742084062 | F15: 0.002531719637 | G15: 0.006290120116 | H15: 0.01565654699 | I15: 0.04304102466 | J15: 0.1076395513 | K15: 0.3523647357
A17: =IF(A3=1,A15,0) ->  | B17: =IF(B3=1,B15,0) -> 
A19: =A17+B17+C17+D17+E17+F17+G17+H17+I17+J17+K17 ->  | B19: 1-й трубопровод
A21: 2-й трубопровод Ду
A22: 200 | B22: 150 | C22: 125 | D22: 100 | E22: 80 | F22: 50 | G22: 40 | H22: 32 | I22: 25 | J22: 20 | K22: 15
A23: =IF(ПОТЕРИ!#REF!=200,1,0) ->  | B23: =IF(ПОТЕРИ!#REF!=150,1,0) ->  | C23: =IF(ПОТЕРИ!#REF!=125,1,0) ->  | D23: =IF(ПОТЕРИ!#REF!=100,1,0) ->  | E23: =IF(ПОТЕРИ!#REF!=80,1,0) ->  | F23: =IF(ПОТЕРИ!#REF!=50,1,0) ->  | G23: =IF(ПОТЕРИ!#REF!=40,1,0) ->  | H23: =IF(ПОТЕРИ!#REF!=32,1,0) ->  | I23: =IF(ПОТЕРИ!#REF!=25,1,0) ->  | J23: =IF(ПОТЕРИ!#REF!=20,1,0) ->  | K23: =IF(ПОТЕРИ!#REF!=15,1,0) -> 
A24: Cкорость потока
A25: =(ПОТЕРИ!F49*1000/3.6)/((PI()*A22^2)/4) -> 0.09221720842 | B25: =(ПОТЕРИ!F49*1000/3.6)/((PI()*B22^2)/4) -> 0.1639417039 | C25: =(ПОТЕРИ!F49*1000/3.6)/((PI()*C22^2)/4) -> 0.2360760535 | D25: =(ПОТЕРИ!F49*1000/3.6)/((PI()*D22^2)/4) -> 0.3688688337 | E25: =(ПОТЕРИ!F49*1000/3.6)/((PI()*E22^2)/4) -> 0.5763575526 | F25: =(ПОТЕРИ!F49*1000/3.6)/((PI()*F22^2)/4) -> 1.475475335 | G25: =(ПОТЕРИ!F49*1000/3.6)/((PI()*G22^2)/4) -> 2.30543021 | H25: =(ПОТЕРИ!F49*1000/3.6)/((PI()*H22^2)/4) -> 3.602234704 | I25: =(ПОТЕРИ!F49*1000/3.6)/((PI()*I22^2)/4) -> 5.901901339 | J25: =(ПОТЕРИ!F49*1000/3.6)/((PI()*J22^2)/4) -> 9.221720842 | K25: =(ПОТЕРИ!F49*1000/3.6)/((PI()*K22^2)/4) -> 16.39417039
A28: Коэффициент Ктр
A29: =1/(4*LOG10(3.7*A22/ПОТЕРИ!F48)^2) -> 0.02487423749 | B29: =1/(4*LOG10(3.7*B22/ПОТЕРИ!F48)^2) -> 0.02695710744 | C29: =1/(4*LOG10(3.7*C22/ПОТЕРИ!F48)^2) -> 0.02841555939 | D29: =1/(4*LOG10(3.7*D22/ПОТЕРИ!F48)^2) -> 0.03036748054 | E29: =1/(4*LOG10(3.7*E22/ПОТЕРИ!F48)^2) -> 0.03252765521 | F29: =1/(4*LOG10(3.7*F22/ПОТЕРИ!F48)^2) -> 0.03790371189 | G29: =1/(4*LOG10(3.7*G22/ПОТЕРИ!F48)^2) -> 0.04093473504 | H29: =1/(4*LOG10(3.7*H22/ПОТЕРИ!F48)^2) -> 0.04434441568 | I29: =1/(4*LOG10(3.7*I22/ПОТЕРИ!F48)^2) -> 0.04863749219 | J29: =1/(4*LOG10(3.7*J22/ПОТЕРИ!F48)^2) -> 0.05307815155 | K29: =1/(4*LOG10(3.7*K22/ПОТЕРИ!F48)^2) -> 0.05976077398
A30: Коэффициент К
A31: =1.5705*A29+0.21 -> 0.24906499 | B31: =1.5705*B29+0.21 -> 0.2523361372 | C31: 0.254626636 | D31: 0.2576921282 | E31: 0.2610846825 | F31: 0.2695277795 | G31: 0.2742880014 | H31: 0.2796429048 | I31: 0.2863851815 | J31: 0.293359237 | K31: 0.3038542955
A32: Потери на отводе [Па]
A33: =(A31*ПОТЕРИ!F51*A25^2)/2 -> 1.015411989 | B33: =(B31*ПОТЕРИ!F51*B25^2)/2 -> 3.251352069 | C33: =(C31*ПОТЕРИ!F51*C25^2)/2 -> 6.803201984 | D33: =(D31*ПОТЕРИ!F51*D25^2)/2 -> 16.80934291 | E33: =(E31*ПОТЕРИ!F51*E25^2)/2 -> 41.5787118 | F33: =(F31*ПОТЕРИ!F51*F25^2)/2 -> 281.3021819 | G33: =(G31*ПОТЕРИ!F51*G25^2)/2 -> 698.9022352 | H33: =(H31*ПОТЕРИ!F51*H25^2)/2 -> 1739.616332 | I33: =(I31*ПОТЕРИ!F51*I25^2)/2 -> 4782.336073 | J33: =(J31*ПОТЕРИ!F51*J25^2)/2 -> 11959.95015 | K33: =(K31*ПОТЕРИ!F51*K25^2)/2 -> 39151.6373
A34: Потери на отводе [м.в.ст.]
A35: =A33/10000 -> 0.0001015411989 | B35: =B33/10000 -> 0.0003251352069 | C35: 0.0006803201984 | D35: 0.001680934291 | E35: 0.00415787118 | F35: 0.02813021819 | G35: 0.06989022352 | H35: 0.1739616332 | I35: 0.4782336073 | J35: 1.195995015 | K35: 3.91516373
A37: =IF(A23=1,A35,0) ->  | B37: =IF(B23=1,B35,0) -> 
A39: =A37+B37+C37+D37+E37+F37+G37+H37+I37+J37+K37 ->  | B39: 2-й трубопровод
A40: 3-й трубопровод Ду
A41: 200 | B41: 150 | C41: 125 | D41: 100 | E41: 80 | F41: 50 | G41: 40 | H41: 32 | I41: 25 | J41: 20 | K41: 15
A42: =IF(ПОТЕРИ!#REF!=200,1,0) ->  | B42: =IF(ПОТЕРИ!#REF!=150,1,0) ->  | C42: =IF(ПОТЕРИ!#REF!=125,1,0) ->  | D42: =IF(ПОТЕРИ!#REF!=100,1,0) ->  | E42: =IF(ПОТЕРИ!#REF!=80,1,0) ->  | F42: =IF(ПОТЕРИ!#REF!=50,1,0) ->  | G42: =IF(ПОТЕРИ!#REF!=40,1,0) ->  | H42: =IF(ПОТЕРИ!#REF!=32,1,0) ->  | I42: =IF(ПОТЕРИ!#REF!=25,1,0) ->  | J42: =IF(ПОТЕРИ!#REF!=20,1,0) ->  | K42: =IF(ПОТЕРИ!#REF!=15,1,0) -> 
A43: Cкорость потока
A44: =(ПОТЕРИ!#REF!*1000/3.6)/((PI()*A41^2)/4) ->  | B44: =(ПОТЕРИ!#REF!*1000/3.6)/((PI()*B41^2)/4) ->  | C44: =(ПОТЕРИ!#REF!*1000/3.6)/((PI()*C41^2)/4) ->  | D44: =(ПОТЕРИ!#REF!*1000/3.6)/((PI()*D41^2)/4) ->  | E44: =(ПОТЕРИ!#REF!*1000/3.6)/((PI()*E41^2)/4) ->  | F44: =(ПОТЕРИ!#REF!*1000/3.6)/((PI()*F41^2)/4) ->  | G44: =(ПОТЕРИ!#REF!*1000/3.6)/((PI()*G41^2)/4) ->  | H44: =(ПОТЕРИ!#REF!*1000/3.6)/((PI()*H41^2)/4) ->  | I44: =(ПОТЕРИ!#REF!*1000/3.6)/((PI()*I41^2)/4) ->  | J44: =(ПОТЕРИ!#REF!*1000/3.6)/((PI()*J41^2)/4) ->  | K44: =(ПОТЕРИ!#REF!*1000/3.6)/((PI()*K41^2)/4) -> 
A47: Коэффициент Ктр
A48: =1/(4*LOG10(3.7*A41/ПОТЕРИ!#REF!)^2) ->  | B48: =1/(4*LOG10(3.7*B41/ПОТЕРИ!#REF!)^2) ->  | C48: =1/(4*LOG10(3.7*C41/ПОТЕРИ!#REF!)^2) ->  | D48: =1/(4*LOG10(3.7*D41/ПОТЕРИ!#REF!)^2) ->  | E48: =1/(4*LOG10(3.7*E41/ПОТЕРИ!#REF!)^2) ->  | F48: =1/(4*LOG10(3.7*F41/ПОТЕРИ!#REF!)^2) ->  | G48: =1/(4*LOG10(3.7*G41/ПОТЕРИ!#REF!)^2) ->  | H48: =1/(4*LOG10(3.7*H41/ПОТЕРИ!#REF!)^2) ->  | I48: =1/(4*LOG10(3.7*I41/ПОТЕРИ!#REF!)^2) ->  | J48: =1/(4*LOG10(3.7*J41/ПОТЕРИ!#REF!)^2) ->  | K48: =1/(4*LOG10(3.7*K41/ПОТЕРИ!#REF!)^2) -> 
A49: Коэффициент К
A50: =1.5705*A48+0.21 ->  | B50: =1.5705*B48+0.21 -> 
A51: Потери на отводе [Па]
A52: =(A50*ПОТЕРИ!#REF!*A44^2)/2 ->  | B52: =(B50*ПОТЕРИ!#REF!*B44^2)/2 ->  | C52: =(C50*ПОТЕРИ!#REF!*C44^2)/2 ->  | D52: =(D50*ПОТЕРИ!#REF!*D44^2)/2 ->  | E52: =(E50*ПОТЕРИ!#REF!*E44^2)/2 ->  | F52: =(F50*ПОТЕРИ!#REF!*F44^2)/2 ->  | G52: =(G50*ПОТЕРИ!#REF!*G44^2)/2 ->  | H52: =(H50*ПОТЕРИ!#REF!*H44^2)/2 ->  | I52: =(I50*ПОТЕРИ!#REF!*I44^2)/2 ->  | J52: =(J50*ПОТЕРИ!#REF!*J44^2)/2 ->  | K52: =(K50*ПОТЕРИ!#REF!*K44^2)/2 -> 
A53: Потери на отводе [м.в.ст.]
A54: =A52/10000 ->  | B54: =B52/10000 -> 
A56: =IF(A42=1,A54,0) ->  | B56: =IF(B42=1,B54,0) -> 
A58: =A56+B56+C56+D56+E56+F56+G56+H56+I56+J56+K56 ->  | B58: 3-й трубопровод
A59: 4-й трубопровод Ду
A60: 200 | B60: 150 | C60: 125 | D60: 100 | E60: 80 | F60: 50 | G60: 40 | H60: 32 | I60: 25 | J60: 20 | K60: 15
A61: =IF(ПОТЕРИ!#REF!=200,1,0) ->  | B61: =IF(ПОТЕРИ!#REF!=150,1,0) ->  | C61: =IF(ПОТЕРИ!#REF!=125,1,0) ->  | D61: =IF(ПОТЕРИ!#REF!=100,1,0) ->  | E61: =IF(ПОТЕРИ!#REF!=80,1,0) ->  | F61: =IF(ПОТЕРИ!#REF!=50,1,0) ->  | G61: =IF(ПОТЕРИ!#REF!=40,1,0) ->  | H61: =IF(ПОТЕРИ!#REF!=32,1,0) ->  | I61: =IF(ПОТЕРИ!#REF!=25,1,0) ->  | J61: =IF(ПОТЕРИ!#REF!=20,1,0) ->  | K61: =IF(ПОТЕРИ!#REF!=15,1,0) -> 
A62: Cкорость потока
A63: =(ПОТЕРИ!#REF!*1000/3.6)/((PI()*A60^2)/4) ->  | B63: =(ПОТЕРИ!#REF!*1000/3.6)/((PI()*B60^2)/4) ->  | C63: =(ПОТЕРИ!#REF!*1000/3.6)/((PI()*C60^2)/4) ->  | D63: =(ПОТЕРИ!#REF!*1000/3.6)/((PI()*D60^2)/4) ->  | E63: =(ПОТЕРИ!#REF!*1000/3.6)/((PI()*E60^2)/4) ->  | F63: =(ПОТЕРИ!#REF!*1000/3.6)/((PI()*F60^2)/4) ->  | G63: =(ПОТЕРИ!#REF!*1000/3.6)/((PI()*G60^2)/4) ->  | H63: =(ПОТЕРИ!#REF!*1000/3.6)/((PI()*H60^2)/4) ->  | I63: =(ПОТЕРИ!#REF!*1000/3.6)/((PI()*I60^2)/4) ->  | J63: =(ПОТЕРИ!#REF!*1000/3.6)/((PI()*J60^2)/4) ->  | K63: =(ПОТЕРИ!#REF!*1000/3.6)/((PI()*K60^2)/4) -> 
A66: Коэффициент Ктр
A67: =1/(4*LOG10(3.7*A60/ПОТЕРИ!#REF!)^2) ->  | B67: =1/(4*LOG10(3.7*B60/ПОТЕРИ!#REF!)^2) ->  | C67: =1/(4*LOG10(3.7*C60/ПОТЕРИ!#REF!)^2) ->  | D67: =1/(4*LOG10(3.7*D60/ПОТЕРИ!#REF!)^2) ->  | E67: =1/(4*LOG10(3.7*E60/ПОТЕРИ!#REF!)^2) ->  | F67: =1/(4*LOG10(3.7*F60/ПОТЕРИ!#REF!)^2) ->  | G67: =1/(4*LOG10(3.7*G60/ПОТЕРИ!#REF!)^2) ->  | H67: =1/(4*LOG10(3.7*H60/ПОТЕРИ!#REF!)^2) ->  | I67: =1/(4*LOG10(3.7*I60/ПОТЕРИ!#REF!)^2) ->  | J67: =1/(4*LOG10(3.7*J60/ПОТЕРИ!#REF!)^2) ->  | K67: =1/(4*LOG10(3.7*K60/ПОТЕРИ!#REF!)^2) -> 
A68: Коэффициент К
A69: =1.5705*A67+0.21 ->  | B69: =1.5705*B67+0.21 -> 
A70: Потери на отводе [Па]
A71: =(A69*ПОТЕРИ!#REF!*A63^2)/2 ->  | B71: =(B69*ПОТЕРИ!#REF!*B63^2)/2 ->  | C71: =(C69*ПОТЕРИ!#REF!*C63^2)/2 ->  | D71: =(D69*ПОТЕРИ!#REF!*D63^2)/2 ->  | E71: =(E69*ПОТЕРИ!#REF!*E63^2)/2 ->  | F71: =(F69*ПОТЕРИ!#REF!*F63^2)/2 ->  | G71: =(G69*ПОТЕРИ!#REF!*G63^2)/2 ->  | H71: =(H69*ПОТЕРИ!#REF!*H63^2)/2 ->  | I71: =(I69*ПОТЕРИ!#REF!*I63^2)/2 ->  | J71: =(J69*ПОТЕРИ!#REF!*J63^2)/2 ->  | K71: =(K69*ПОТЕРИ!#REF!*K63^2)/2 -> 
A72: Потери на отводе [м.в.ст.]
A73: =A71/10000 ->  | B73: =B71/10000 -> 
A75: =IF(A61=1,A73,0) ->  | B75: =IF(B61=1,B73,0) -> 
A77: =A75+B75+C75+D75+E75+F75+G75+H75+I75+J75+K75 ->  | B77: 4-й трубопровод

Sheet фильтр (hidden)
A1: 1-й трубопровод | D1: 2-й трубопровод
B4: True= | C4: =IF(ПОТЕРИ!E31>0,1,0) -> 1 | E4: True= | F4: =IF(ПОТЕРИ!F31>0,1,0) -> 1
A5: =(4*ПОТЕРИ!E27/((ПОТЕРИ!E30*3.6)*PI()*POWER(ПОТЕРИ!E31/1000,2)))/1000 -> 0.2652582385 | D5: =(4*ПОТЕРИ!F27/((ПОТЕРИ!F30*3.6)*PI()*POWER(ПОТЕРИ!F31/1000,2)))/1000 -> 0.2210485321
B6: Enter= | C6: =IF(C4>0,A5,0) -> 0.2652582385 | E6: Enter= | F6: =IF(F4>0,D5,0) -> 0.2210485321
A7: 3-й трубопровод | D7: 4-й трубопровод
B10: True= | C10: =IF(ПОТЕРИ!#REF!>0,1,0) ->  | E10: True= | F10: =IF(ПОТЕРИ!#REF!>0,1,0) -> 
A11: =(4*ПОТЕРИ!#REF!/((ПОТЕРИ!#REF!*3.6)*PI()*POWER(ПОТЕРИ!#REF!/1000,2)))/1000 ->  | D11: =(4*ПОТЕРИ!#REF!/((ПОТЕРИ!#REF!*3.6)*PI()*POWER(ПОТЕРИ!#REF!/1000,2)))/1000 -> 
B12: Enter= | C12: =IF(C10>0,A11,0) ->  | E12: Enter= | F12: =IF(F10>0,D11,0) -> 
